Cogmind - Beta 13 @@@ ROGUE MODE // 2024.05.18 @ 21:07:06 Player: jonasanoj Result: Destroyed by D-53 Grenadier with Mini Grenade Launcher Performance ------------- Evolutions (0) 0 Regions Visited (4) 800 Robots Destroyed (16) 80 Value Destroyed (279) 279 Prototype IDs (0) 0 Alien Tech Used (0) 0 Bonus (500) 500 TOTAL SCORE: 1659 Bonus ------- Triggered High Security 500 Cogmind --------- Core Integrity 0/250 Matter 300/300 Energy 100/100 System Corruption 1% Temperature Cool (0) Movement Core (150) Ox2 Location -8/Recycling Parts ------- > --- POWER (1) -------- (None) > --- PROPULSION (2) --- (None) > --- UTILITY (2) ------ Small Storage Unit > --- WEAPON (2) ------- Flail > --- INVENTORY (8) ---- VTOL Module VTOL Module VTOL Module Cesium-ion Thruster Scrap Engine Datajack Peak State ------------ > --- POWER ------------ Light Deuterium Engine > --- PROPULSION ------- Light Treads Armored Treads > --- UTILITY ---------- Small Storage Unit Terrain Scanner > --- WEAPON ----------- Flak Cannon Flail > --- INVENTORY -------- VTOL Module VTOL Module VTOL Module Cesium-ion Thruster Scrap Engine Grenade Launcher Datajack [Rating: 16] Favorites ----------- Power Light Deuterium Engine Engine Light Deuterium Engine Power Core Light Nuclear Core Propulsion Light Treads Treads Light Treads Leg Aluminum Leg Utility Small Storage Unit Device Terrain Scanner Storage Small Storage Unit Weapon Assault Rifle Energy Gun Particle Gun Ballistic Gun Assault Rifle Ballistic Cannon Battle Cannon Launcher Grenade Launcher Special Weapon Mining Laser Impact Weapon Flail Special Melee Weapon Datajack Build | -11 -10 -10 -10 -8 ------- Run | Yrd Mat Min Sub Rec Slots Evolved . | . . . . . Power . | . . . . . Propulsion . | . . . . . Utility . | . . . . . Weapon . | . . . . . Parts Attached 28 | 6 10 6 2 4 Power 4 | 1 2 1 . . Engine 3 | 1 1 1 . . Core 1 | . 1 . . . Reactor . | . . . . . Propulsion 6 | 2 . 4 . . Treads 4 | 2 . 2 . . Leg 2 | . . 2 . . Wheel . | . . . . . Hover . | . . . . . Flight . | . . . . . Utility 5 | 1 4 . . . Device 4 | . 4 . . . Storage 1 | 1 . . . . Processor . | . . . . . Hackware . | . . . . . Protection . | . . . . . Artifact . | . . . . . Weapon 13 | 2 4 1 2 4 Energy Gun 2 | 1 1 . . . Energy Cannon . | . . . . . Ballistic Gun 4 | 1 2 1 . . Ballistic Cannon 2 | . . . 1 1 Launcher 2 | . . . 1 1 Special Weapon 1 | . 1 . . . Impact Weapon 1 | . . . . 1 Slashing Weapon . | . . . . . Piercing Weapon . | . . . . . Special Melee Weapon 1 | . . . . 1 Unidentified Prototypes . | . . . . . Parts Lost 9 | . 3 . . 6 Power 2 | . 1 . . 1 Propulsion 2 | . . . . 2 Utility 2 | . 1 . . 1 Weapon 3 | . 1 . . 2 Highest Loss Streak 6 | . 3 . . 6 To Critical Strikes . | . . . . . Average Slot Usage (%) 98 | . 99 94 100 98 Engine 11 | . 10 10 14 13 Core 2 | . 3 3 . . Treads 27 | . 28 27 28 27 Device 13 | . 13 14 14 13 Storage 14 | . 14 14 14 14 Energy Gun 7 | . 8 14 11 . Ballistic Gun 9 | . 17 9 5 . Ballistic Cannon 3 | . . . 8 8 Impact Weapon 1 | . . . . 5 Special Melee Weapon 3 | . . . . 12 Naked Turns . | . . . . . Heaviest Build 19 | 14 16 16 17 19 Greatest Support 40 | 40 40 40 40 40 Greatest Overweight (x) 2 | . . . . 2 Average Overweight (x) . | . . . . . Largest Inventory Capacity 8 | 8 8 8 8 8 Average Capacity 7 | 6 8 8 8 8 Most Carried 8 | 6 8 8 8 8 Average Carried 7 | 3 7 7 8 7 Final Capacity 8 | 8 8 8 8 8 Final Carried 8 | 6 8 8 8 7 Class Distribution -------------------- 100% | Mutant Dominant Class ---------------- Mutant | -10/Materials Mutant | -10/Mines Mutant | -10/Subcaves Mutant | -8/Recycling Resources | -11 -10 -10 -10 -8 ----------- Run | Yrd Mat Min Sub Rec Matter Collected 680 | 241 204 63 87 85 Remotely . | . . . . . Salvage Created 347 | 5 331 . . 11 Parts 30 | 1 28 . . 1 Haulers Intercepted . | . . . . . Recyclers Shooed . | . . . . . Parts Field Recycled . | . . . . . Retrieved Matter . | . . . . . Parts Self-Destructed 12 | . . . 12 . Prevented . | . . . . . Kills | -11 -10 -10 -10 -8 ------- Run | Yrd Mat Min Sub Rec Combat Hostiles Destroyed 11 | . 11 . . . Guns 11 | . 11 . . . Classes Destroyed 5 | 1 3 . . 1 Worker 3 | 1 2 . . . Tunneler 1 | . . . . 1 Watcher 1 | . 1 . . . Swarmer 6 | . 6 . . . Grunt 5 | . 5 . . . Best Kill Streak 6 | 1 6 . . 1 Combat Bots Only 3 | . 3 . . . Max Kills in Single Turn 1 | 1 1 . . 1 Gunslinging . | . . . . . Exploded . | . . . . . Melee . | . . . . . Uniques/NPCs Destroyed . | . . . . . Combat | -11 -10 -10 -10 -8 -------- Run | Yrd Mat Min Sub Rec Hostile Shots Fired 119 | . 50 . 27 42 Missed 35 | . 19 . 9 7 Damage Taken 1502 | . 502 24 135 841 Core 260 | . 48 . 33 179 Absorbed by Shields . | . . . . . Core Remaining (%) 100 | 100 . . . . Volleys Fired 46 | . 30 . 13 3 Largest 2 | . 2 . 2 1 Hottest 85 | . 85 . 85 44 Shots Fired 84 | . 60 . 21 3 Gun 76 | . 60 . 16 . Cannon 3 | . . . . 3 Launcher 5 | . . . 5 . Special . | . . . . . Kinetic 46 | . 35 . 8 3 Thermal 33 | . 25 . 8 . Explosive 5 | . . . 5 . Electromagnetic . | . . . . . Robot Hit Streak 6 | . 6 . 5 4 Robot Miss Streak 6 | . 3 . 4 6 Penetration Max . | . . . . . Secondary Targets . | . . . . . Shots Hit Robots 55 | . 35 . 10 10 Core Hits 30 | 1 20 . 3 6 Critical Kills . | . . . . . Critical Parts Destroyed . | . . . . . Critical Strikes . | . . . . . Melee Attacks 12 | . . . . 12 Impact 4 | . . . . 4 Slashing . | . . . . . Piercing . | . . . . . Sneak Attacks 7 | . . . . 7 Combat Hostiles 1 | . . . . 1 Follow-up Attacks . | . . . . . Damage Inflicted 721 | 5 497 . 138 81 Guns 629 | . 491 . 138 . Cannons 81 | . . . . 81 Explosions . | . . . . . Melee . | . . . . . Ramming 11 | 5 6 . . . Kinetic 435 | . 284 . 70 81 Thermal 275 | . 207 . 68 . Explosive . | . . . . . Electromagnetic . | . . . . . Impact . | . . . . . Slashing . | . . . . . Piercing . | . . . . . Highest Corruption 1 | . 1 1 1 1 Average Corruption 1 | . 1 1 1 1 Corruption Purged . | . . . . . Corruption Blocked . | . . . . . Effects 10 | . . 3 2 5 Message Errors 2 | . . . 1 1 Matter Fused 6 | . . 2 1 3 Energy Discharges 1 | . . . . 1 Data Loss (minor) 1 | . . 1 . . Overload Shots . | . . . . . Overflow Damage . | . . . . . Projectiles . | . . . . . Explosions . | . . . . . Melee . | . . . . . Knockbacks 4 | . . . . 4 Impact . | . . . . . Kinetic 4 | . . . . 4 Secondary . | . . . . . Self-Inflicted Damage 16 | . . . 16 . Shots 2 | . . . 2 . Rammed 2 | 1 1 . . . Targets Rammed 3 | 2 1 . . . Kicked . | . . . . . Crushed 1 | 1 . . . . Highest Temperature 210 | . 210 . 7 36 Average Temperature 54 | . 60 . 2 17 Received Heat Transfer 276 | . 96 . 108 72 Siege Activations . | . . . . . Robots Corrupted . | . . . . . Combat Hostiles . | . . . . . Parts Fried . | . . . . . Impact Corruptions . | . . . . . Robots Melted . | . . . . . Combat Hostiles . | . . . . . Parts Melted 1 | . 1 . . . Heat Transferred 666 | . 518 . 148 . Parts Sabotaged . | . . . . . Parts Stolen . | . . . . . Parts Stripped . | . . . . . Power Chain Reactions . | . . . . . Alert | -11 -10 -10 -10 -8 ------- Run | Yrd Mat Min Sub Rec Peak Influence 2266 | . 322 87 . 2266 Initial 2236 | . 3 87 . 2236 Average 699 | . 87 67 . 2159 Maximum Alert Level 5 | . 1 . . 5 Low Security (%) 64 | 100 87 100 . . Level 1 5 | . 12 . . . Level 2 . | . . . . . Level 3 . | . . . . . Level 4 . | . . . . . Level 5 28 | . . . . 96 High Security 1 | . . . . 3 Max Security . | . . . . . Squads Dispatched 3 | . 3 . . . Investigation 1 | . 1 . . . Extermination . | . . . . . Reinforcement 2 | . 2 . . . Assault . | . . . . . Garrison . | . . . . . Intercept . | . . . . . Searches Triggered . | . . . . . Construction Impeded . | . . . . . Haulers Reinforced . | . . . . . Active Scanning Responses . | . . . . . Cargo Convoy Interrupts . | . . . . . Stealth | -11 -10 -10 -10 -8 --------- Run | Yrd Mat Min Sub Rec Distress Signals 3 | . 3 . . . Communications Jammed . | . . . . . Distress Signals . | . . . . . Times Spotted 214 | . 27 1 183 3 Peak Tracking Total 6 | . 6 1 2 3 Tactical Retreats 14 | . 2 . 12 . Traps | -11 -10 -10 -10 -8 ------- Run | Yrd Mat Min Sub Rec Traps Triggered 3 | . 2 1 . . Indirectly . | . . . . . Trap Hack Attempts . | . . . . . Triggered . | . . . . . Disarmed . | . . . . . Reprogrammed . | . . . . . Reused . | . . . . . Traps Extracted . | . . . . . Installed . | . . . . . Triggered . | . . . . . Machines | -11 -10 -10 -10 -8 ---------- Run | Yrd Mat Min Sub Rec Machines Disabled 1 | . 1 . . . Max in Single Turn 1 | . 1 . . . Machines Repaired . | . . . . . Machines Dismantled . | . . . . . Machines Sabotaged . | . . . . . Overloaded Fab Kills . | . . . . . Hacking | -11 -10 -10 -10 -8 --------- Run | Yrd Mat Min Sub Rec Machines Accessed 10 | . 3 1 . 6 Terminals 9 | . 3 . . 6 Fabricators . | . . . . . Repair Stations . | . . . . . Recycling Units . | . . . . . Scanalyzers . | . . . . . Garrison Access . | . . . . . Total Hacks 26 | . 5 1 . 20 Successful 11 | . . 1 . 10 Failed 15 | . 5 . . 10 Catastrophic 3 | . 1 . . 2 Database Lockouts . | . . . . . Manual 12 | . 4 . . 8 Terminals 25 | . 5 . . 20 Fabricators . | . . . . . Repair Stations . | . . . . . Recycling Units . | . . . . . Scanalyzers . | . . . . . Garrison Access . | . . . . . Terminal Hacks 11 | . . 1 . 10 Record 4 | . . . . 4 Part Schematic 1 | . . . . 1 Robot Schematic 1 | . . . . 1 Open Door 1 | . . 1 . . Branch Access Points 1 | . . . . 1 Emergency Access Points 1 | . . . . 1 Dispatch Records 1 | . . . . 1 Zone Layout 1 | . . . . 1 Fabricator Hacks . | . . . . . Repair Station Hacks . | . . . . . Recycling Unit Hacks . | . . . . . Scanalyzer . | . . . . . Garrison Access Hacks . | . . . . . Unauthorized Hacks . | . . . . . Terminals . | . . . . . Fabricators . | . . . . . Repair Stations . | . . . . . Recycling Units . | . . . . . Scanalyzers . | . . . . . Garrison Access . | . . . . . Data Cores Recovered . | . . . . . Used . | . . . . . Hacking Detections 7 | . 3 . . 4 Full Trace Events 3 | . . . . 3 Feedback Events . | . . . . . Feedback Blocked . | . . . . . Robot Schematics Acquired 1 | . . . . 1 Robots Built . | . . . . . Authchips . | . . . . . Time . | . . . . . Total Robot Build Rating . | . . . . . Part Schematics Acquired 1 | . . . . 1 Parts Built . | . . . . . Authchips . | . . . . . Time . | . . . . . Total Part Build Rating . | . . . . . Parts Repaired . | . . . . . Time . | . . . . . Parts Recycled . | . . . . . Recycled Matter . | . . . . . Retrieved Matter . | . . . . . Retrieved Components . | . . . . . Parts Scanalyzed . | . . . . . Part Schematics Acquired . | . . . . . Parts Damaged . | . . . . . Bothacking | -11 -10 -10 -10 -8 ------------ Run | Yrd Mat Min Sub Rec Used RIF Installer . | . . . . . Robots Hacked 1 | . . . . 1 Non-combat 1 | . . . . 1 Combat . | . . . . . Robot Hacks Applied 3 | . . . . 3 parse_system 1 | . . . . 1 no_distress 1 | . . . . 1 find_recycling 1 | . . . . 1 Relay Couplers Released . | . . . . . Fabnet Peak Effective % . | . . . . . Robots Rewired . | . . . . . Allies Hacked . | . . . . . Hacks Repelled . | . . . . . Allies | -11 -10 -10 -10 -8 -------- Run | Yrd Mat Min Sub Rec Total Allies . | . . . . . Largest Group . | . . . . . Highest-Rated Group . | . . . . . Highest-Rated Ally . | . . . . . Total Orders . | . . . . . Ally Attacks . | . . . . . Total Damage . | . . . . . Kills . | . . . . . Allies Corrupted . | . . . . . Allies Melted . | . . . . . Intel | -11 -10 -10 -10 -8 ------- Run | Yrd Mat Min Sub Rec Robot Analysis Total . | . . . . . Derelict Logs Recovered 1 | . . 1 . . Drone Launches . | . . . . . Drone Recoveries . | . . . . . Exploration | -11 -10 -10 -10 -8 ------------- Run | Yrd Mat Min Sub Rec Turns Passed 3278 | 105 1228 514 643 788 Spaces Moved 1682 | 56 551 254 367 454 Core 8 | 2 . . . 6 Treads 1674 | 54 551 254 367 448 Legs . | . . . . . Wheels . | . . . . . Hover . | . . . . . Flight . | . . . . . Fastest Speed 50 | 50 160 160 165 150 Average Speed 162 | 156 160 163 165 164 Slowest Speed 170 | 160 160 165 165 170 Overloaded Moves . | . . . . . Propulsion Burnouts . | . . . . . Robots Hopped . | . . . . . Cave-ins Triggered . | . . . . . Exploration Rate (%) 42 | 4 66 53 17 70 Regions Visited 4 Branch Regions 3 Pre-discovered Areas 1 | . . 1 . . Known Exits Taken . | . . . . . Unknown Exits Taken 4 | 1 1 1 1 . Scrap Searched 2 | . . 1 1 . Spaces Dug 4 | . . . . 4 Terrain Destroyed 38 | . . . 34 4 Melee 4 | . . . . 4 Projectile . | . . . . . AOE 34 | . . . 34 . Terrain Rammed . | . . . . . Walls Destroyed . | . . . . . Machines Disabled . | . . . . . Actions | -11 -10 -10 -10 -8 --------- Run | Yrd Mat Min Sub Rec Total 2123 | 70 837 353 383 480 Wait 316 | . 229 87 . . Move 1679 | 56 550 253 366 454 Hop . | . . . . . Pick Up 23 | 7 10 2 1 3 Fast Attach 10 | 5 2 3 . . Attach 6 | 1 3 1 . 1 Detach . | . . . . . Swap 12 | . 5 2 2 3 Drop 17 | . 7 5 1 4 Fire 46 | . 30 . 13 3 Melee 12 | . . . . 12 Ram . | . . . . . Kick . | . . . . . Crush 2 | 1 1 . . . Escape Stasis . | . . . . . Rewire . | . . . . . Trap . | . . . . . Miscellaneous . | . . . . . Route ------- -11/Scrapyard -10/Materials (discovered 3 exits: [*Mat x2] / *Min) -10/Mines -10/Subcaves -8/Recycling (discovered 1 exit: [*Fac]) History --------- Turn | Location | Event 12 | -11/Scrapyard | Discovered new exit (range 15) 106 | -11/Scrapyard | Entered Materials 312 | -10/Materials | Build established: Mutant 526 | -10/Materials | Lost 3 parts (1p1u1w) 733 | -10/Materials | Discovered new exit (range 16) 1074 | -10/Materials | Discovered new exit (range 16) 1234 | -10/Materials | Discovered new exit (range 16) 1334 | -10/Materials | Entered Mines 1363 | -10/Mines | Assembled infested the area 1368 | -10/Mines | Assisted by a Guerilla fighting off Assembled 1392 | -10/Mines | Learned location of Zion (-7) 1412 | -10/Mines | Met a Derelict who couldn't figure out how to use a Trap Extractor 1845 | -10/Mines | Discovered new exit (range 3) 1848 | -10/Mines | Entered Subcaves 2073 | -10/Subcaves | Discovered new exit (range 3) 2384 | -10/Subcaves | A swath of the cavern ceiling suddenly collapsed 2491 | -10/Subcaves | Entered Recycling 2496 | -8/Recycling | Found Scrap Engine 2907 | -8/Recycling | Discovered new exit (range 15) 3251 | -8/Recycling | High security lockdown imminent 3252 | -8/Recycling | Core integrity fell below 50% 3275 | -8/Recycling | Core integrity fell below 20% 3279 | -8/Recycling | Destroyed by D-53 Grenadier with Mini Grenade Launcher Last Messages --------------- T-07 Excavator destroyed. B-36 Bruiser destroyed. I-25 Savior destroyed. ALERT: High security lockdown imminent, T-100. L-31 Rogue destroyed. G-47 Trooper destroyed. T-07 Excavator destroyed. H-55 Commando destroyed. U-05 Engineer destroyed. Lgt. Deuterium Engine destroyed. Terrain Scanner destroyed. Grenade Launcher destroyed. Y-45 Defender destroyed. R-06 Scavenger destroyed. G-47 Trooper destroyed. Acquired 3 matter. G-47 Trooper destroyed. The unstable cave ceiling collapses. Arm. Treads destroyed. The unstable cave ceiling collapses. Map ----- +----------------------------------------------------+ | | | | | | | | | | | ????????????????????????####???????????? | | ?????????????#####??????"""#???????????? | | ?????????????# #######"Y"########===#? | | ?????????????# | | ?????????????# ### | | ?????????????## ##?# | | ???????????#??# #??###+#+##### ##???#? | | ???#?#???#????# #???# # #?????? | | ????#????###??# #???# # #?????? | | ????###### #### ##### # #?????? | | ????# # + # #???#?? | | ????# T # ######## # #??#??? | | ##??# # #??????# # #???# ? | | ????## #??????# # #####?? | | ?????# ####### + +?? | | #????# + # #####?? | | ???#?# ### ### ### #?????? | | ????## #?##??###?# ####### | | ????# #?????????# # | | ???## #??????#?## # """ | | ???# @ ##??????### # """ | | ???# ####?#???## ! + """ | | #### ####?????????#!! # """ | | # # ##????????????#! # """ | | % #?????????????### # | | h ##?????????????#?# ####### | | # d! ##??????????????#?# #?##??# | | # # k #?????????????#???# #?????? | | #?????????????????# ####### | | % #?????????????????# ## | | = %#?????????????????# ## | | % !#?????????????????# ## | | # %* #????????#????????# ## """" | | # !######????????????????# / """" | | # # #???????????????????#?# ## """" | | ########?????? ??????????? ## | | ?????????????????????????########## | | ?#?#??????#??????????????????????######+ | | ?????????????????????????????????# | | ????#?????#??????????????????????# | | ?????????????????????????????????# | | ??#? ????? ??????????????????????# | | ????????????????????????????? | | ???????????????????????????? | | ???????????????????????????? """"" | +----------------------------------------------------+ Best States ------------- Heat Dissipation 25 Energy Generation 14 Energy Capacity 250 Matter Stores 300 Matter Capacity 300 Sight Range 16 Robot Scan Range 14 Terrain Scan Range 14 Terrain Scan Density 10 Evasion (%) 40 Recoil Reduction 2 Item Schematics ----------------- Hvy. Machine Gun | -8/Recycling | Hacked Robot Schematics ------------------ C-17 Slicer | -8/Recycling | Hacked Fabricated ------------ Nothing Alien Tech Used ----------------- None Achievements -------------- None Challenges ------------ None Game ------ Seed ExperimentalTransmissionChip Manual? 0 Play Time 00:19:08 Cumulative 10.9 hours Start 2024.05.18 @ 20:48:40 End 2024.05.18 @ 21:07:06 Sessions 1 Manual Loads 0 Difficulty Rogue Special Mode None Game No. 17 Rogue 12 Adventurer 5 Explorer 0 Win Type - Total 0 Types 0/0/0/0/0/0/0/0/0 Lore% 17 Gallery% 21 Achievement% 18 Wizard Run 0 Options --------- Layout 0 ASCII 0 Keyboard 0 Movement Arrows Keybinds 0 Fullscreen 1 Font 18/X11Bold Map View 76x50 Zoom Use 0% Tactical HUD 0 Map Filters NONE Filters NONE Steam 1 RUN: 01a13a56-34a4-434f-82b3-2b71280039e1